[Event "*** Titled Tuesday 3|2 Blitz"]
[Site "Chess.com"]
[Date "2016.09.06"]
[Round "3"]
[White "Lapitch"]
[Black "pedromartinez91"]
[Result "1-0"]
[WhiteElo "2582"]
[BlackElo "2370"]
[TimeControl "180+2"]
[EndTime "17:30:30 PDT"]
[Termination "Lapitch won by checkmate"]

1. Nf3 {[%clk 0:03:01.9]} 1... d5 {[%clk 0:02:59.7]} 2. c4 {[%clk 0:03:02.8]}
2... e6 {[%clk 0:03:00.3]} 3. g3 {[%clk 0:03:03.5]} 3... Nf6 {[%clk 0:03:00.3]}
4. Bg2 {[%clk 0:03:05.4]} 4... Be7 {[%clk 0:03:01]} 5. O-O {[%clk 0:03:05.7]}
5... O-O {[%clk 0:03:02.3]} 6. b3 {[%clk 0:03:07.3]} 6... b6 {[%clk 0:03:01.3]}
7. Bb2 {[%clk 0:03:07.6]} 7... Bb7 {[%clk 0:03:02.2]} 8. e3 {[%clk 0:03:08.6]}
8... c5 {[%clk 0:03:02.2]} 9. Nc3 {[%clk 0:03:08.4]} 9... dxc4 {[%clk
0:02:56.1]} 10. bxc4 {[%clk 0:03:08.9]} 10... Nc6 {[%clk 0:02:52.2]} 11. Qe2
{[%clk 0:03:07.7]} 11... Nb4 {[%clk 0:02:34.9]} 12. d4 {[%clk 0:02:50.7]} 12...
Ne4 {[%clk 0:02:31.4]} 13. Rfd1 {[%clk 0:02:45.3]} 13... Qc8 {[%clk 0:02:26.5]}
14. a3 {[%clk 0:02:39.3]} 14... Nxc3 {[%clk 0:02:18.3]} 15. Bxc3 {[%clk
0:02:40]} 15... Na6 {[%clk 0:02:08.6]} 16. d5 {[%clk 0:02:36]} 16... Rd8 {[%clk
0:01:46]} 17. e4 {[%clk 0:02:33.1]} 17... Bf8 {[%clk 0:01:45.5]} 18. Bh3 {[%clk
0:02:23.6]} 18... Nc7 {[%clk 0:01:19.7]} 19. Ne5 {[%clk 0:02:13.7]} 19... Qb8
{[%clk 0:01:10.2]} 20. Qh5 {[%clk 0:01:37.1]} 20... g6 {[%clk 0:01:04.5]} 21.
Qf3 {[%clk 0:01:37.7]} 21... f5 {[%clk 0:00:54.8]} 22. exf5 {[%clk 0:01:38.6]}
22... exf5 {[%clk 0:00:52.5]} 23. Bxf5 {[%clk 0:01:35.8]} 23... gxf5 {[%clk
0:00:40]} 24. Qxf5 {[%clk 0:01:35.7]} 24... Bg7 {[%clk 0:00:41.4]} 25. Qf7+
{[%clk 0:01:36.4]} 25... Kh8 {[%clk 0:00:42.3]} 26. Ng6+ {[%clk 0:01:38]} 26...
hxg6 {[%clk 0:00:41.3]} 27. Qxg7# {[%clk 0:01:39.4]} 1-0

[Event "*** Titled Tuesday 3|2 Blitz"]
[Site "Chess.com"]
[Date "2016.09.06"]
[Round "3"]
[White "jk13"]
[Black "Evgeny_Levin"]
[Result "0-1"]
[WhiteElo "2495"]
[BlackElo "2654"]
[TimeControl "180+2"]
[EndTime "17:30:31 PDT"]
[Termination "Evgeny_Levin won by resignation"]

1. e4 {[%clk 0:03:01.9]} 1... c5 {[%clk 0:02:59.7]} 2. c3 {[%clk 0:03:02.9]}
2... e6 {[%clk 0:02:55.9]} 3. d4 {[%clk 0:03:03.4]} 3... d5 {[%clk 0:02:56.6]}
4. exd5 {[%clk 0:03:04.5]} 4... exd5 {[%clk 0:02:56.6]} 5. Nf3 {[%clk
0:03:06.4]} 5... Nc6 {[%clk 0:02:56.4]} 6. Bb5 {[%clk 0:03:07.6]} 6... Nf6
{[%clk 0:02:54.7]} 7. O-O {[%clk 0:03:07.9]} 7... Be7 {[%clk 0:02:54.3]} 8. dxc5
{[%clk 0:03:08.8]} 8... Bxc5 {[%clk 0:02:56.1]} 9. Nbd2 {[%clk 0:03:07.5]} 9...
O-O {[%clk 0:02:55.6]} 10. Nb3 {[%clk 0:03:09]} 10... Bb6 {[%clk 0:02:50.9]} 11.
Bg5 {[%clk 0:03:09.4]} 11... a6 {[%clk 0:02:32.2]} 12. Bd3 {[%clk 0:03:09.1]}
12... h6 {[%clk 0:02:30]} 13. Bh4 {[%clk 0:03:09.7]} 13... g5 {[%clk 0:02:29.7]}
14. Bg3 {[%clk 0:03:05.5]} 14... Ne4 {[%clk 0:02:30.2]} 15. Ne5 {[%clk
0:02:42.8]} 15... Nxg3 {[%clk 0:02:22.8]} 16. Nxc6 {[%clk 0:02:43.6]} 16... bxc6
{[%clk 0:02:22.6]} 17. hxg3 {[%clk 0:02:44.6]} 17... Qf6 {[%clk 0:02:24]} 18.
Qd2 {[%clk 0:02:40.3]} 18... Bg4 {[%clk 0:02:21.2]} 19. Rae1 {[%clk 0:02:40.3]}
19... Rfe8 {[%clk 0:02:19]} 20. Rxe8+ {[%clk 0:02:39]} 20... Rxe8 {[%clk
0:02:20.9]} 21. Bxa6 {[%clk 0:02:39.8]} 21... Ra8 {[%clk 0:02:14.5]} 22. Be2
{[%clk 0:02:34]} 22... Bxe2 {[%clk 0:02:14.4]} 23. Qxe2 {[%clk 0:02:35.9]} 23...
Rxa2 {[%clk 0:02:14.9]} 24. Ra1 {[%clk 0:02:20.2]} 24... Qxf2+ {[%clk
0:01:46.3]} 25. Qxf2 {[%clk 0:02:12.8]} 25... Bxf2+ {[%clk 0:01:48.2]} 26. Kxf2
{[%clk 0:01:18.2]} 26... Rxb2+ {[%clk 0:01:48.1]} 27. Ke3 {[%clk 0:01:18.2]}
27... Rxb3 {[%clk 0:01:48.3]} 28. Kd4 {[%clk 0:01:19.8]} 28... c5+ {[%clk
0:01:40.4]} 29. Kxc5 {[%clk 0:01:03.9]} 29... Rxc3+ {[%clk 0:01:40.3]} 30. Kxd5
{[%clk 0:01:05.5]} 30... Rxg3 {[%clk 0:01:41.8]} 31. Ra2 {[%clk 0:01:07]} 31...
Re3 {[%clk 0:01:39.9]} 32. Kd4 {[%clk 0:01:07.1]} 32... Re6 {[%clk 0:01:40.1]}
33. Rf2 {[%clk 0:01:07.7]} 33... Kg7 {[%clk 0:01:40.2]} 34. g4 {[%clk
0:01:08.3]} 34... Rf6 {[%clk 0:01:40.4]} 0-1

[Event "*** Titled Tuesday 3|2 Blitz"]
[Site "Chess.com"]
[Date "2016.09.06"]
[Round "3"]
[White "DeviatkinAndrey"]
[Black "NTBT_DHS"]
[Result "1-0"]
[WhiteElo "2596"]
[BlackElo "2530"]
[TimeControl "180+2"]
[EndTime "17:31:52 PDT"]
[Termination "DeviatkinAndrey won by checkmate"]

1. e4 {[%clk 0:03:01.4]} 1... g6 {[%clk 0:03:00.9]} 2. f4 {[%clk 0:02:59.7]}
2... d5 {[%clk 0:02:56.3]} 3. d3 {[%clk 0:02:55.6]} 3... e5 {[%clk 0:02:52]} 4.
Nc3 {[%clk 0:02:53.5]} 4... Bb4 {[%clk 0:02:46.2]} 5. Bd2 {[%clk 0:02:51.7]}
5... d4 {[%clk 0:02:15.8]} 6. Nce2 {[%clk 0:02:48.8]} 6... Bxd2+ {[%clk
0:02:07.4]} 7. Qxd2 {[%clk 0:02:49.6]} 7... Nc6 {[%clk 0:02:08]} 8. g3 {[%clk
0:02:43.3]} 8... Nf6 {[%clk 0:02:05.9]} 9. h3 {[%clk 0:02:27.1]} 9... O-O {[%clk
0:02:04]} 10. Bg2 {[%clk 0:02:28.3]} 10... Nh5 {[%clk 0:02:00.9]} 11. Nf3 {[%clk
0:02:23.9]} 11... f5 {[%clk 0:01:57.1]} 12. exf5 {[%clk 0:02:19.8]} 12... exf4
{[%clk 0:01:57.8]} 13. g4 {[%clk 0:02:17.4]} 13... Ng3 {[%clk 0:01:51.7]} 14.
Nxg3 {[%clk 0:02:10.5]} 14... fxg3 {[%clk 0:01:52.8]} 15. O-O-O {[%clk
0:02:05.9]} 15... gxf5 {[%clk 0:01:54]} 16. gxf5 {[%clk 0:02:06.6]} 16... Bxf5
{[%clk 0:01:54.4]} 17. Rhg1 {[%clk 0:02:02.4]} 17... Qd6 {[%clk 0:01:54.4]} 18.
Nh4 {[%clk 0:01:58.9]} 18... Rae8 {[%clk 0:01:45.5]} 19. Qg5+ {[%clk 0:01:43.1]}
19... Bg6 {[%clk 0:01:41.9]} 20. Be4 {[%clk 0:01:44.2]} 20... Rf2 {[%clk
0:00:58.8]} 21. Rxg3 {[%clk 0:01:32.8]} 21... Nb4 {[%clk 0:00:51.5]} 22. Nxg6
{[%clk 0:01:06.4]} 22... Rxc2+ {[%clk 0:00:42.7]} 23. Kb1 {[%clk 0:01:07]} 23...
hxg6 {[%clk 0:00:44]} 24. Bxg6 {[%clk 0:00:50.7]} 24... Re5 {[%clk 0:00:19.2]}
25. Bf5+ {[%clk 0:00:40.7]} 25... Kf8 {[%clk 0:00:19.4]} 26. Qg8+ {[%clk
0:00:37.4]} 26... Ke7 {[%clk 0:00:20.7]} 27. Rg7+ {[%clk 0:00:38.6]} 27... Kf6
{[%clk 0:00:22.1]} 28. Qf7# {[%clk 0:00:39.8]} 1-0

[Event "*** Titled Tuesday 3|2 Blitz"]
[Site "Chess.com"]
[Date "2016.09.06"]
[Round "3"]
[White "BellJackson95"]
[Black "CraiggoryC"]
[Result "0-1"]
[WhiteElo "2148"]
[BlackElo "2035"]
[TimeControl "180+2"]
[EndTime "17:31:53 PDT"]
[Termination "CraiggoryC won by checkmate"]

1. e4 {[%clk 0:02:58.3]} 1... e6 {[%clk 0:03:00.9]} 2. d4 {[%clk 0:02:58.5]}
2... d5 {[%clk 0:03:02.2]} 3. Nc3 {[%clk 0:02:59.5]} 3... Bb4 {[%clk 0:02:57.2]}
4. e5 {[%clk 0:02:59.8]} 4... c5 {[%clk 0:02:56.5]} 5. a3 {[%clk 0:03:00.6]}
5... Bxc3+ {[%clk 0:02:57.5]} 6. bxc3 {[%clk 0:03:02.5]} 6... Ne7 {[%clk
0:02:59.1]} 7. Qg4 {[%clk 0:03:03]} 7... Qc7 {[%clk 0:03:00.3]} 8. Qxg7 {[%clk
0:03:03.3]} 8... Rg8 {[%clk 0:03:01.6]} 9. Qxh7 {[%clk 0:03:04]} 9... cxd4
{[%clk 0:03:03.2]} 10. Ne2 {[%clk 0:03:04.9]} 10... Nbc6 {[%clk 0:03:04.6]} 11.
f4 {[%clk 0:03:05.4]} 11... Bd7 {[%clk 0:03:05.8]} 12. Qd3 {[%clk 0:03:05.7]}
12... dxc3 {[%clk 0:03:07.2]} 13. Qxc3 {[%clk 0:03:07.6]} 13... O-O-O {[%clk
0:03:04.9]} 14. Ng3 {[%clk 0:03:06.1]} 14... Kb8 {[%clk 0:02:43]} 15. Rb1 {[%clk
0:02:58.1]} 15... Nf5 {[%clk 0:02:31.7]} 16. Nxf5 {[%clk 0:02:54.6]} 16... exf5
{[%clk 0:02:33.6]} 17. Be3 {[%clk 0:02:31.8]} 17... d4 {[%clk 0:02:27.2]} 18.
Bxd4 {[%clk 0:02:27.7]} 18... Nxd4 {[%clk 0:02:11.5]} 19. Qxd4 {[%clk
0:02:29.6]} 19... Bb5 {[%clk 0:01:39.5]} 20. Qb4 {[%clk 0:01:49.5]} 20... Qxc2
{[%clk 0:00:42.7]} 21. Bxb5 {[%clk 0:00:11.2]} 21... Rxg2 {[%clk 0:00:42.3]} 22.
Rf1 {[%clk 0:00:05.2]} 22... Rgd2 {[%clk 0:00:42.6]} 23. Ba4 {[%clk 0:00:03.8]}
23... Rd1+ {[%clk 0:00:42.6]} 24. Rxd1 {[%clk 0:00:04.9]} 24... Rxd1# {[%clk
0:00:43.2]} 0-1

[Event "*** Titled Tuesday 3|2 Blitz"]
[Site "Chess.com"]
[Date "2016.09.06"]
[Round "3"]
[White "hypert"]
[Black "OparinGrigoriy"]
[Result "0-1"]
[WhiteElo "2324"]
[BlackElo "2600"]
[TimeControl "180+2"]
[EndTime "17:32:04 PDT"]
[Termination "OparinGrigoriy won by resignation"]

1. e4 {[%clk 0:03:01.9]} 1... c5 {[%clk 0:03:01]} 2. Nf3 {[%clk 0:03:02.8]} 2...
d6 {[%clk 0:03:02.6]} 3. d4 {[%clk 0:03:03.3]} 3... cxd4 {[%clk 0:03:04.5]} 4.
Nxd4 {[%clk 0:03:04.5]} 4... Nf6 {[%clk 0:03:06.2]} 5. Nc3 {[%clk 0:03:05.5]}
5... a6 {[%clk 0:03:07.9]} 6. Be2 {[%clk 0:03:03.9]} 6... e5 {[%clk 0:03:09.1]}
7. Nb3 {[%clk 0:03:03.6]} 7... Be7 {[%clk 0:03:10.7]} 8. O-O {[%clk 0:03:04.8]}
8... O-O {[%clk 0:03:11.7]} 9. Bf3 {[%clk 0:03:04.8]} 9... Be6 {[%clk
0:03:12.2]} 10. Re1 {[%clk 0:03:05.6]} 10... Nbd7 {[%clk 0:03:13.6]} 11. a4
{[%clk 0:03:06.1]} 11... Rc8 {[%clk 0:03:14.1]} 12. a5 {[%clk 0:03:07.1]} 12...
Re8 {[%clk 0:03:15.3]} 13. Be3 {[%clk 0:03:05.3]} 13... h6 {[%clk 0:03:16.7]}
14. h3 {[%clk 0:02:54.8]} 14... Nh7 {[%clk 0:03:18.3]} 15. Bg4 {[%clk
0:02:51.4]} 15... Bxg4 {[%clk 0:03:14.1]} 16. Qxg4 {[%clk 0:02:47.2]} 16... Bg5
{[%clk 0:03:13.8]} 17. Qd1 {[%clk 0:02:40.6]} 17... Rc6 {[%clk 0:03:12.9]} 18.
Nd5 {[%clk 0:02:39.5]} 18... Bxe3 {[%clk 0:03:09.5]} 19. Nxe3 {[%clk 0:02:35.8]}
19... Ndf6 {[%clk 0:03:09.5]} 20. Qd3 {[%clk 0:02:19.9]} 20... Ng5 {[%clk
0:03:07.4]} 21. Nd2 {[%clk 0:02:20.5]} 21... Ne6 {[%clk 0:03:08.1]} 22. c4
{[%clk 0:02:19.1]} 22... Nf4 {[%clk 0:03:07.5]} 23. Qb3 {[%clk 0:02:12.1]} 23...
Qd7 {[%clk 0:03:08]} 24. Nd5 {[%clk 0:02:12.8]} 24... N6xd5 {[%clk 0:03:05.5]}
25. exd5 {[%clk 0:02:10.9]} 25... Rcc8 {[%clk 0:03:05.2]} 26. Rac1 {[%clk
0:02:10.4]} 26... f5 {[%clk 0:03:05.1]} 27. Nf1 {[%clk 0:02:00.8]} 27... e4
{[%clk 0:03:05.5]} 28. Rc3 {[%clk 0:01:52.5]} 28... Nd3 {[%clk 0:03:05.8]} 29.
Re2 {[%clk 0:01:53.4]} 29... Rc5 {[%clk 0:02:53.4]} 30. Qa3 {[%clk 0:01:38.8]}
30... Rec8 {[%clk 0:02:51]} 31. Nd2 {[%clk 0:01:36.2]} 31... Ne5 {[%clk
0:02:52]} 32. b4 {[%clk 0:01:24.3]} 32... R5c7 {[%clk 0:02:36.9]} 33. Qb3 {[%clk
0:01:12.5]} 33... Qf7 {[%clk 0:02:36.9]} 34. b5 {[%clk 0:00:49]} 34... Qd7
{[%clk 0:02:26.4]} 35. Qc2 {[%clk 0:00:40.6]} 35... axb5 {[%clk 0:02:26.2]} 36.
Ree3 {[%clk 0:00:33.9]} 36... bxc4 {[%clk 0:02:23.8]} 37. Re1 {[%clk 0:00:27.4]}
37... Qb5 {[%clk 0:02:23.3]} 38. Rb1 {[%clk 0:00:27.5]} 38... Qxa5 {[%clk
0:02:23.4]} 39. Nf1 {[%clk 0:00:26.7]} 39... Qxd5 {[%clk 0:02:24.8]} 40. Ng3
{[%clk 0:00:27.7]} 40... Qe6 {[%clk 0:02:25.1]} 41. Qd2 {[%clk 0:00:27.2]} 41...
Nd3 {[%clk 0:02:23.1]} 42. Ra3 {[%clk 0:00:25.2]} 42... c3 {[%clk 0:02:23.4]}
43. Qc2 {[%clk 0:00:26.6]} 43... d5 {[%clk 0:02:20.6]} 44. Ne2 {[%clk
0:00:27.7]} 44... Qf6 {[%clk 0:02:18.9]} 45. Rab3 {[%clk 0:00:28.7]} 45... d4
{[%clk 0:02:19.2]} 46. Rxb7 {[%clk 0:00:29.1]} 46... Rxb7 {[%clk 0:02:20.1]} 47.
Rxb7 {[%clk 0:00:30.4]} 47... Kh7 {[%clk 0:02:21.2]} 48. Rd7 {[%clk 0:00:29.4]}
48... Nb4 {[%clk 0:02:21.6]} 49. Qb3 {[%clk 0:00:25.4]} 49... d3 {[%clk
0:02:22.4]} 50. Qxb4 {[%clk 0:00:20.9]} 50... dxe2 {[%clk 0:02:23.5]} 51. Qb1
{[%clk 0:00:20]} 51... c2 {[%clk 0:02:24.8]} 52. Qc1 {[%clk 0:00:20.9]} 52...
e1=Q+ {[%clk 0:02:25.8]} 53. Qxe1 {[%clk 0:00:21.7]} 53... c1=Q {[%clk 0:02:27]}
0-1

[Event "*** Titled Tuesday 3|2 Blitz"]
[Site "Chess.com"]
[Date "2016.09.06"]
[Round "3"]
[White "Kawhi_Leonard2"]
[Black "saraswathii"]
[Result "1/2-1/2"]
[WhiteElo "2024"]
[BlackElo "2119"]
[TimeControl "180+2"]
[EndTime "17:32:18 PDT"]
[Termination "Game drawn by agreement"]

1. e4 {[%clk 0:03:01.9]} 1... c5 {[%clk 0:02:50]} 2. Nf3 {[%clk 0:03:02.8]} 2...
e6 {[%clk 0:02:48.9]} 3. d4 {[%clk 0:03:04.1]} 3... cxd4 {[%clk 0:02:49.1]} 4.
Nxd4 {[%clk 0:03:05.7]} 4... Nf6 {[%clk 0:02:49.6]} 5. Nc3 {[%clk 0:03:06.5]}
5... Nc6 {[%clk 0:02:50.1]} 6. Ndb5 {[%clk 0:03:06.3]} 6... Bb4 {[%clk
0:02:49.9]} 7. a3 {[%clk 0:03:05.4]} 7... Bxc3+ {[%clk 0:02:50.8]} 8. Nxc3
{[%clk 0:03:06.5]} 8... d5 {[%clk 0:02:52.1]} 9. exd5 {[%clk 0:03:07.5]} 9...
exd5 {[%clk 0:02:54]} 10. Bd3 {[%clk 0:03:08.2]} 10... d4 {[%clk 0:02:55.1]} 11.
Ne2 {[%clk 0:03:08.3]} 11... O-O {[%clk 0:02:47.8]} 12. O-O {[%clk 0:03:05.4]}
12... Bg4 {[%clk 0:02:46.3]} 13. h3 {[%clk 0:03:04]} 13... Bxe2 {[%clk
0:02:46.3]} 14. Qxe2 {[%clk 0:03:03.8]} 14... Qd5 {[%clk 0:02:44.3]} 15. Bd2
{[%clk 0:02:57.1]} 15... Rfe8 {[%clk 0:02:34.3]} 16. Qd1 {[%clk 0:02:47.8]}
16... Ne5 {[%clk 0:02:34.4]} 17. Bf4 {[%clk 0:02:46.8]} 17... Nxd3 {[%clk
0:02:26.1]} 18. Qxd3 {[%clk 0:02:46.7]} 18... Rac8 {[%clk 0:02:24.5]} 19. Rfe1
{[%clk 0:02:46.2]} 19... Re4 {[%clk 0:02:17.4]} 20. Bg3 {[%clk 0:02:37]} 20...
h6 {[%clk 0:02:10.7]} 21. f3 {[%clk 0:02:36.3]} 21... Rxe1+ {[%clk 0:02:02.2]}
22. Rxe1 {[%clk 0:02:36.6]} 22... Qc4 {[%clk 0:01:55.8]} 23. Qxc4 {[%clk
0:02:29.4]} 23... Rxc4 {[%clk 0:01:57.7]} 24. Re2 {[%clk 0:02:30.5]} 24... Nd5
{[%clk 0:01:56.1]} 25. Bf2 {[%clk 0:02:16.9]} 25... Nf4 {[%clk 0:01:49.4]} 26.
Rd2 {[%clk 0:02:17.4]} 26... Ne6 {[%clk 0:01:46]} 27. b3 {[%clk 0:02:06.2]}
27... Rc6 {[%clk 0:01:45.9]} 28. Bxd4 {[%clk 0:02:04.5]} 28... Nxd4 {[%clk
0:01:45.1]} 29. Rxd4 {[%clk 0:02:05.3]} 29... Rxc2 {[%clk 0:01:46]} 30. Rd8+
{[%clk 0:02:05.9]} 30... Kh7 {[%clk 0:01:46.3]} 31. Rd7 {[%clk 0:02:07.7]} 31...
Ra2 {[%clk 0:01:42.3]} 32. a4 {[%clk 0:01:57.8]} 32... b6 {[%clk 0:01:38.3]} 33.
Rxf7 {[%clk 0:01:57.4]} 33... Rb2 {[%clk 0:01:36.9]} 34. Rxa7 {[%clk 0:01:56.5]}
34... Rxb3 {[%clk 0:01:38]} 35. Kh2 {[%clk 0:01:48.7]} 35... Ra3 {[%clk
0:01:35.1]} 36. h4 {[%clk 0:01:49.4]} 36... b5 {[%clk 0:01:32.2]} 37. a5 {[%clk
0:01:46.9]} 37... b4 {[%clk 0:01:33.3]} 38. Kg3 {[%clk 0:01:30.9]} 38... b3
{[%clk 0:01:33.6]} 39. Rb7 {[%clk 0:01:31.8]} 39... Rxa5 {[%clk 0:01:33.5]} 40.
Rxb3 {[%clk 0:01:32.3]} 40... Ra7 {[%clk 0:01:33.5]} 41. Rb6 {[%clk 0:01:32.7]}
41... Rf7 {[%clk 0:01:27.3]} 42. h5 {[%clk 0:01:33.3]} 42... Rf5 {[%clk
0:01:26.7]} 43. Kg4 {[%clk 0:01:31.9]} 43... Rg5+ {[%clk 0:01:26.4]} 44. Kh3
{[%clk 0:01:23.6]} 44... Rxh5+ {[%clk 0:01:27.2]} 45. Kg3 {[%clk 0:01:25.2]}
45... Rg5+ {[%clk 0:01:28]} 46. Kf2 {[%clk 0:01:26.2]} 46... Rc5 {[%clk
0:01:24.3]} 47. g4 {[%clk 0:01:26.5]} 47... Rc7 {[%clk 0:01:19.8]} 48. Kg3
{[%clk 0:01:27.4]} 48... Rf7 {[%clk 0:01:15.6]} 49. Ra6 {[%clk 0:01:28.8]} 49...
Rb7 {[%clk 0:01:01.1]} 50. Rc6 {[%clk 0:01:29.4]} 50... Rf7 {[%clk 0:00:59.3]}
51. Rd6 {[%clk 0:01:29.5]} 51... Re7 {[%clk 0:00:59]} 52. Rc6 {[%clk 0:01:30.3]}
1/2-1/2

[Event "*** Titled Tuesday 3|2 Blitz"]
[Site "Chess.com"]
[Date "2016.09.06"]
[Round "3"]
[White "DavidForthoffer"]
[Black "TrickyTrapChess"]
[Result "0-1"]
[WhiteElo "2063"]
[BlackElo "2136"]
[TimeControl "180+2"]
[EndTime "17:32:27 PDT"]
[Termination "TrickyTrapChess won by checkmate"]

1. d4 {[%clk 0:03:01.9]} 1... Nf6 {[%clk 0:02:59.7]} 2. c4 {[%clk 0:03:03.4]}
2... c5 {[%clk 0:03:01.1]} 3. d5 {[%clk 0:03:03.7]} 3... b5 {[%clk 0:03:01.4]}
4. cxb5 {[%clk 0:03:05.6]} 4... a6 {[%clk 0:03:02.6]} 5. bxa6 {[%clk 0:03:07.5]}
5... g6 {[%clk 0:03:03.7]} 6. b3 {[%clk 0:03:07.7]} 6... Bg7 {[%clk 0:03:04.2]}
7. Bb2 {[%clk 0:03:08.9]} 7... O-O {[%clk 0:03:04]} 8. g3 {[%clk 0:03:10.3]}
8... d6 {[%clk 0:03:04.6]} 9. Bg2 {[%clk 0:03:11.1]} 9... Bxa6 {[%clk
0:02:48.7]} 10. Nh3 {[%clk 0:03:11.3]} 10... Nbd7 {[%clk 0:02:43.8]} 11. O-O
{[%clk 0:03:08.1]} 11... Qa5 {[%clk 0:02:43]} 12. Bc3 {[%clk 0:03:07.8]} 12...
Qc7 {[%clk 0:02:40.8]} 13. Nf4 {[%clk 0:03:08.6]} 13... Ne5 {[%clk 0:02:26.6]}
14. h4 {[%clk 0:03:07.2]} 14... Rfb8 {[%clk 0:02:10.4]} 15. Nd2 {[%clk
0:03:06.7]} 15... Nfd7 {[%clk 0:02:01.5]} 16. Qc2 {[%clk 0:03:01.4]} 16... c4
{[%clk 0:01:50.3]} 17. b4 {[%clk 0:03:00.5]} 17... Bb7 {[%clk 0:01:35.3]} 18. a3
{[%clk 0:02:59.7]} 18... Nb6 {[%clk 0:01:35.4]} 19. a4 {[%clk 0:02:46.5]} 19...
Bh6 {[%clk 0:01:18.3]} 20. e4 {[%clk 0:02:35.5]} 20... Bxf4 {[%clk 0:01:01.6]}
21. gxf4 {[%clk 0:02:37.4]} 21... Ng4 {[%clk 0:01:02.7]} 22. a5 {[%clk 0:02:27]}
22... Nd7 {[%clk 0:01:00.9]} 23. b5 {[%clk 0:02:25]} 23... e5 {[%clk 0:00:51.4]}
24. a6 {[%clk 0:02:21.4]} 24... Bc8 {[%clk 0:00:49.8]} 25. Qa4 {[%clk
0:02:05.1]} 25... Nb6 {[%clk 0:00:38.9]} 26. Ba5 {[%clk 0:01:51.2]} 26... Qe7
{[%clk 0:00:31.9]} 27. Bxb6 {[%clk 0:01:43.9]} 27... Rxb6 {[%clk 0:00:33.8]} 28.
Qxc4 {[%clk 0:01:41.5]} 28... exf4 {[%clk 0:00:26.1]} 29. Nf3 {[%clk 0:01:20.5]}
29... Bd7 {[%clk 0:00:26.4]} 30. Qc7 {[%clk 0:01:10.7]} 30... Rxb5 {[%clk
0:00:27.1]} 31. a7 {[%clk 0:01:08.5]} 31... Rb3 {[%clk 0:00:18.3]} 32. Rab1
{[%clk 0:01:01.9]} 32... Rxf3 {[%clk 0:00:18.3]} 33. Rb8+ {[%clk 0:00:58.3]}
33... Kg7 {[%clk 0:00:18.9]} 34. Rxa8 {[%clk 0:00:53.1]} 34... Qxh4 {[%clk
0:00:19.4]} 35. Rg8+ {[%clk 0:00:47.9]} 35... Kh6 {[%clk 0:00:20.4]} 36. Ra1
{[%clk 0:00:38.8]} 36... Qxf2+ {[%clk 0:00:20.7]} 37. Kh1 {[%clk 0:00:39.7]}
37... Rh3+ {[%clk 0:00:21.7]} 38. Bxh3 {[%clk 0:00:40.1]} 38... Qh2# {[%clk
0:00:23.1]} 0-1

[Event "*** Titled Tuesday 3|2 Blitz"]
[Site "Chess.com"]
[Date "2016.09.06"]
[Round "3"]
[White "Gabrielian_Artur"]
[Black "dretch"]
[Result "0-1"]
[WhiteElo "2522"]
[BlackElo "2621"]
[TimeControl "180+2"]
[EndTime "17:32:28 PDT"]
[Termination "dretch won by resignation"]

1. e4 {[%clk 0:03:01.5]} 1... e6 {[%clk 0:03:01.1]} 2. d4 {[%clk 0:03:01.9]}
2... d5 {[%clk 0:03:02.3]} 3. Nc3 {[%clk 0:03:03.2]} 3... Nf6 {[%clk 0:03:02.8]}
4. Bg5 {[%clk 0:03:02.9]} 4... dxe4 {[%clk 0:03:03.8]} 5. Nxe4 {[%clk
0:03:03.5]} 5... Be7 {[%clk 0:03:05.2]} 6. Bxf6 {[%clk 0:03:04.1]} 6... Bxf6
{[%clk 0:03:07.1]} 7. Nf3 {[%clk 0:03:04.5]} 7... Nd7 {[%clk 0:03:08.7]} 8. Bd3
{[%clk 0:03:02.8]} 8... c5 {[%clk 0:03:09.8]} 9. Qe2 {[%clk 0:03:02.3]} 9...
Qa5+ {[%clk 0:03:08.9]} 10. c3 {[%clk 0:02:58.3]} 10... cxd4 {[%clk 0:03:09.9]}
11. Nxf6+ {[%clk 0:02:59.4]} 11... Nxf6 {[%clk 0:03:11]} 12. Nxd4 {[%clk
0:03:00.5]} 12... O-O {[%clk 0:03:11.1]} 13. O-O {[%clk 0:03:01.2]} 13... e5
{[%clk 0:03:12.2]} 14. Nb3 {[%clk 0:02:58.2]} 14... Qc7 {[%clk 0:03:12.3]} 15.
Rfe1 {[%clk 0:02:51.6]} 15... Re8 {[%clk 0:03:13.1]} 16. Bc2 {[%clk 0:02:49.3]}
16... Bg4 {[%clk 0:03:13.6]} 17. f3 {[%clk 0:02:49.7]} 17... Bd7 {[%clk
0:03:12.5]} 18. Nd2 {[%clk 0:02:47.7]} 18... Qb6+ {[%clk 0:03:09.2]} 19. Qf2
{[%clk 0:02:41.3]} 19... Qxb2 {[%clk 0:03:05.7]} 20. Rec1 {[%clk 0:02:17.6]}
20... Qb5 {[%clk 0:02:37.2]} 21. Rab1 {[%clk 0:02:16.6]} 21... Qa6 {[%clk
0:02:37.3]} 22. Bb3 {[%clk 0:02:15.3]} 22... Rac8 {[%clk 0:02:30.9]} 23. Qe3
{[%clk 0:02:06.3]} 23... Bf5 {[%clk 0:02:30.3]} 24. Rb2 {[%clk 0:02:03.7]} 24...
Qa3 {[%clk 0:02:30.3]} 25. Rbb1 {[%clk 0:01:28.2]} 25... Bxb1 {[%clk 0:02:30.9]}
26. Rxb1 {[%clk 0:01:29.4]} 26... Qc5 {[%clk 0:02:31.9]} 27. Qxc5 {[%clk
0:01:29.1]} 27... Rxc5 {[%clk 0:02:33.8]} 28. c4 {[%clk 0:01:30.6]} 28... e4
{[%clk 0:02:32.3]} 29. fxe4 {[%clk 0:01:24.2]} 29... Nxe4 {[%clk 0:02:32.7]} 30.
Re1 {[%clk 0:01:25.7]} 30... Nf6 {[%clk 0:02:33]} 31. Rc1 {[%clk 0:01:22.6]}
31... g6 {[%clk 0:02:31]} 32. Nf3 {[%clk 0:01:18.6]} 32... Kg7 {[%clk
0:02:31.3]} 33. Rd1 {[%clk 0:01:18.6]} 33... Re7 {[%clk 0:02:30.7]} 34. h3
{[%clk 0:01:18.7]} 34... b5 {[%clk 0:02:28.5]} 35. cxb5 {[%clk 0:01:19.5]} 35...
Rxb5 {[%clk 0:02:30.4]} 36. Kh2 {[%clk 0:01:19.9]} 36... Rb4 {[%clk 0:02:30.1]}
37. Rd6 {[%clk 0:01:18.1]} 37... Ne4 {[%clk 0:02:28.3]} 38. Rc6 {[%clk
0:01:17.7]} 38... Rb6 {[%clk 0:02:27.9]} 39. Rc8 {[%clk 0:01:18.1]} 39... Nd6
{[%clk 0:02:27.3]} 40. Ra8 {[%clk 0:01:18.3]} 40... Nf5 {[%clk 0:02:27.4]} 41.
Rc8 {[%clk 0:01:13.3]} 41... Rd6 {[%clk 0:02:27.8]} 42. Rc3 {[%clk 0:00:48.5]}
42... Nd4 {[%clk 0:02:26.8]} 43. Nxd4 {[%clk 0:00:42.9]} 43... Rxd4 {[%clk
0:02:27.6]} 44. Rf3 {[%clk 0:00:43.9]} 44... f5 {[%clk 0:02:27.2]} 45. Rf2
{[%clk 0:00:44.4]} 45... Kf6 {[%clk 0:02:27.1]} 46. Rc2 {[%clk 0:00:45.1]} 46...
Rd6 {[%clk 0:02:26.1]} 47. h4 {[%clk 0:00:44.9]} 47... h6 {[%clk 0:02:26.2]} 48.
g3 {[%clk 0:00:45.3]} 48... g5 {[%clk 0:02:27.3]} 49. hxg5+ {[%clk 0:00:46.4]}
49... hxg5 {[%clk 0:02:28.3]} 50. Kg2 {[%clk 0:00:47.9]} 50... g4 {[%clk
0:02:29.1]} 51. Rf2 {[%clk 0:00:47.8]} 51... Kg5 {[%clk 0:02:29.8]} 52. Bc2
{[%clk 0:00:47.3]} 52... Rd5 {[%clk 0:02:29.9]} 53. Bb3 {[%clk 0:00:47.7]} 53...
Rde5 {[%clk 0:02:31]} 54. Bc4 {[%clk 0:00:46.8]} 54... Re3 {[%clk 0:02:30.2]}
55. Rb2 {[%clk 0:00:44.6]} 55... Rc3 {[%clk 0:02:29.8]} 56. Bf1 {[%clk
0:00:45.4]} 56... Ree3 {[%clk 0:02:30.7]} 57. Rb7 {[%clk 0:00:45.6]} 57... Rxg3+
{[%clk 0:02:31.2]} 58. Kh2 {[%clk 0:00:47.2]} 58... Rgf3 {[%clk 0:02:31.5]} 59.
Bg2 {[%clk 0:00:47.7]} 59... Rc2 {[%clk 0:02:31.9]} 60. Kh1 {[%clk 0:00:36.9]}
60... Rff2 {[%clk 0:02:30.8]} 0-1